[Event "Reykjavik Open 2025"]
[Site "Reykjavik, Iceland"]
[Date "2025.04.15"]
[Round "9.1"]
[White "Gupta, Abhijeet"]
[Black "Maghsoodloo, Parham"]
[Result "1/2-1/2"]
[WhiteElo "2576"]
[WhiteTitle "GM"]
[WhiteFideId "5010608"]
[BlackElo "2684"]
[BlackTitle "GM"]
[BlackFideId "12539929"]
[TimeControl "90+30 +30 after 40 moves"]
[Variant "Standard"]
[ECO "D37"]
[Opening "Queen's Gambit Declined: Barmen Variation"]
[StudyName "Round 9"]
1. d4 { [%clk 1:30:53] } 1... Nf6 { [%clk 1:30:52] } 2. c4 { [%clk 1:31:19] } 2... e6 { [%clk 1:31:15] } 3. Nf3 { [%clk 1:31:40] } 3... d5 { [%clk 1:31:40] } 4. Nc3 { [%clk 1:31:55] } 4... Nbd7 { [%clk 1:32:04] } 5. Qc2 { [%clk 1:31:43] } 5... dxc4 { [%clk 1:29:28] } 6. e4 { [%clk 1:30:12] } 6... Nb6 { [%clk 1:29:52] } 7. Be3 { [%clk 1:30:17] } 7... Bd7 { [%clk 1:28:31] } 8. Be2 { [%clk 1:25:13] } 8... Ng4 { [%clk 1:24:49] } 9. Bf4 { [%clk 1:20:59] } 9... Bd6 { [%clk 0:42:50] } 10. e5 { [%clk 1:13:41] } 10... Be7 { [%clk 0:42:32] } 11. Nd2 { [%clk 1:09:58] } 11... h5 { [%clk 0:36:56] } 12. h3 { [%clk 1:08:12] } 12... Nh6 { [%clk 0:36:38] } 13. Nxc4 { [%clk 1:08:17] } 13... Bc6 { [%clk 0:35:46] } 14. O-O-O { [%clk 1:03:28] } 14... Nd5 { [%clk 0:33:25] } 15. Nxd5 { [%clk 0:58:49] } 15... Qxd5 { [%clk 0:30:03] } 16. Bf3 { [%clk 0:41:38] } 16... Qb5 { [%clk 0:28:20] } 17. Be2 { [%clk 0:40:24] } 17... Qd5 { [%clk 0:28:50] } 18. Bf3 { [%clk 0:40:42] } 18... Qb5 { [%clk 0:23:10] } 19. Be2 { [%clk 0:33:50] } 19... Qd5 { [%clk 0:22:51] } 1/2-1/2

[Event "Reykjavik Open 2025"]
[Site "Reykjavik, Iceland"]
[Date "2025.04.15"]
[Round "9.2"]
[White "Amar, Elham"]
[Black "Lu, Shanglei"]
[Result "1/2-1/2"]
[WhiteElo "2546"]
[WhiteTitle "GM"]
[WhiteFideId "1533533"]
[BlackElo "2618"]
[BlackTitle "GM"]
[BlackFideId "8603332"]
[TimeControl "90+30 +30 after 40 moves"]
[Variant "Standard"]
[ECO "B90"]
[Opening "Sicilian Defense: Najdorf Variation, Lipnitsky Attack"]
[StudyName "Round 9"]
1. e4 { [%clk 1:30:57] } 1... c5 { [%clk 1:29:52] } 2. Nf3 { [%clk 1:31:13] } 2... d6 { [%clk 1:29:49] } 3. d4 { [%clk 1:31:35] } 3... cxd4 { [%clk 1:29:41] } 4. Nxd4 { [%clk 1:31:55] } 4... Nf6 { [%clk 1:30:05] } 5. Nc3 { [%clk 1:32:19] } 5... a6 { [%clk 1:30:04] } 6. Bc4 { [%clk 1:32:41] } 6... e6 { [%clk 1:30:29] } 7. Be3 { [%clk 1:33:05] } 7... Be7 { [%clk 1:30:12] } 8. a3 { [%clk 1:32:38] } 8... O-O { [%clk 1:17:17] } 9. f3 { [%clk 1:27:58] } 9... b5 { [%clk 1:09:34] } 10. Bb3 { [%clk 1:28:08] } 10... Bb7 { [%clk 1:09:30] } 11. h4 { [%clk 1:28:30] } 11... Nbd7 { [%clk 0:57:18] } 12. Qd2 { [%clk 1:28:24] } 12... Ne5 { [%clk 0:54:02] } 13. O-O-O { [%clk 1:26:17] } 13... Rc8 { [%clk 0:32:03] } 14. g4 { [%clk 1:26:18] } 14... Nc4 { [%clk 0:31:58] } 15. Bxc4 { [%clk 1:16:53] } 15... Rxc4 { [%clk 0:32:25] } 16. h5 { [%clk 1:07:37] } 16... h6 { [%clk 0:32:50] } 17. g5 { [%clk 0:57:58] } 17... hxg5 { [%clk 0:32:57] } 18. h6 { [%clk 0:57:58] } 18... g6 { [%clk 0:32:40] } 19. h7+ { [%clk 0:53:09] } 19... Kh8 { [%clk 0:33:02] } 20. Bxg5 { [%clk 0:53:28] } 20... Rc5 { [%clk 0:25:35] } 21. Bh6 { [%clk 0:44:25] } 21... Re8 { [%clk 0:26:01] } 22. Nde2 { [%clk 0:44:19] } 22... Rh5 { [%clk 0:23:00] } 23. Nf4 { [%clk 0:40:18] } 23... Rxh1 { [%clk 0:23:26] } 24. Rxh1 { [%clk 0:40:45] } 24... Nd7 { [%clk 0:22:12] } 25. Nh3 { [%clk 0:37:01] } 25... Kxh7 { [%clk 0:09:02] } 26. Nf4 { [%clk 0:12:29] } 26... Bh4 { [%clk 0:08:52] } 27. Nxe6 { [%clk 0:10:41] } 27... Rxe6 { [%clk 0:07:54] } 28. Bg5 { [%clk 0:11:08] } 28... Qf8 { [%clk 0:06:25] } 29. Rxh4+ { [%clk 0:09:44] } 29... Kg8 { [%clk 0:06:54] } 30. Bh6 { [%clk 0:06:55] } 30... Qd8 { [%clk 0:06:13] } 31. Bg5 { [%clk 0:07:15] } 31... Qf8 { [%clk 0:06:40] } 32. Qd4 { [%clk 0:07:05] } 32... f6 { [%clk 0:06:36] } 33. Be3 { [%clk 0:07:07] } 33... Ne5 { [%clk 0:06:15] } 34. Qd1 { [%clk 0:07:20] } 34... f5 { [%clk 0:05:55] } 35. f4 { [%clk 0:02:43] } 35... Qe7 { [%clk 0:03:42] } 36. Rh1 { [%clk 0:01:45] } 36... Nf7 { [%clk 0:03:44] } 37. Rg1 { [%clk 0:01:31] } 37... Kf8 { [%clk 0:03:37] } 38. Nd5 { [%clk 0:00:41] } 38... Qh4 { [%clk 0:01:57] } 39. exf5 { [%clk 0:00:33] } 39... gxf5 { [%clk 0:02:25] } 40. Bb6 { [%clk 0:00:34] } 40... Bxd5 { [%clk 0:01:37] } 41. Qxd5 { [%clk 0:01:01] } 41... Re1+ { [%clk 0:26:41] } 42. Rxe1 { [%clk 0:31:17] } 42... Qxe1+ { [%clk 0:27:08] } 43. Qd1 { [%clk 0:31:43] } 43... Qe4 { [%clk 0:27:26] } 44. Qd2 { [%clk 0:30:42] } 44... Qh1+ { [%clk 0:22:43] } 1/2-1/2

[Event "Reykjavik Open 2025"]
[Site "Reykjavik, Iceland"]
[Date "2025.04.15"]
[Round "9.3"]
[White "Ivanchuk, Vasyl"]
[Black "Cornette, Matthieu"]
[Result "1/2-1/2"]
[WhiteElo "2604"]
[WhiteTitle "GM"]
[WhiteFideId "14100010"]
[BlackElo "2528"]
[BlackTitle "GM"]
[BlackFideId "620084"]
[TimeControl "90+30 +30 after 40 moves"]
[Variant "Standard"]
[ECO "C70"]
[Opening "Ruy Lopez: Morphy Defense, Classical Defense Deferred"]
[StudyName "Round 9"]
1. e4 { [%clk 1:30:59] } 1... e5 { [%clk 1:30:48] } 2. Nf3 { [%clk 1:31:20] } 2... Nc6 { [%clk 1:31:11] } 3. Bb5 { [%clk 1:31:46] } 3... a6 { [%clk 1:31:28] } 4. Ba4 { [%clk 1:32:11] } 4... Bc5 { [%clk 1:31:06] } 5. c3 { [%clk 1:31:28] } 5... Nge7 { [%clk 1:31:11] } 6. O-O { [%clk 1:18:36] } 6... Ba7 { [%clk 1:28:06] } 7. d4 { [%clk 1:19:00] } 7... Ng6 { [%clk 1:28:28] } 8. Be3 { [%clk 1:11:43] } 8... O-O { [%clk 1:27:57] } 9. d5 { [%clk 1:12:02] } 9... Bxe3 { [%clk 1:21:50] } 10. fxe3 { [%clk 1:10:47] } 10... Na5 { [%clk 1:17:00] } 11. Nbd2 { [%clk 1:08:33] } 11... b6 { [%clk 1:15:49] } 12. Qe1 { [%clk 1:03:38] } 12... d6 { [%clk 1:09:13] } 13. h4 { [%clk 1:01:11] } 13... f6 { [%clk 0:49:29] } 14. Qg3 { [%clk 0:40:59] } 14... Nh8 { [%clk 0:41:26] } 15. Rf2 { [%clk 0:34:03] } 15... Nf7 { [%clk 0:38:40] } 16. Raf1 { [%clk 0:34:31] } 16... Nb7 { [%clk 0:36:01] } 17. h5 { [%clk 0:29:26] } 17... Nc5 { [%clk 0:33:54] } 18. Bc6 { [%clk 0:28:09] } 18... Ra7 { [%clk 0:29:18] } 19. b4 { [%clk 0:26:19] } 19... Nd3 { [%clk 0:22:33] } 20. Re2 { [%clk 0:25:29] } 1/2-1/2

[Event "Reykjavik Open 2025"]
[Site "Reykjavik, Iceland"]
[Date "2025.04.15"]
[Round "9.4"]
[White "Safarli, Eltaj"]
[Black "Muradli, Mahammad"]
[Result "1/2-1/2"]
[WhiteElo "2617"]
[WhiteTitle "GM"]
[WhiteFideId "13402129"]
[BlackElo "2588"]
[BlackTitle "GM"]
[BlackFideId "13409301"]
[TimeControl "90+30 +30 after 40 moves"]
[Variant "Standard"]
[ECO "B50"]
[Opening "Sicilian Defense: Delayed Alapin Variation, with d6"]
[StudyName "Round 9"]
1. e4 { [%clk 1:30:50] } 1... c5 { [%clk 1:29:54] } 2. Nf3 { [%clk 1:31:09] } 2... d6 { [%clk 1:30:17] } 3. c3 { [%clk 1:31:04] } 3... Nf6 { [%clk 1:29:32] } 4. h3 { [%clk 1:31:17] } 4... Nc6 { [%clk 1:26:34] } 5. Bd3 { [%clk 1:31:27] } 5... g6 { [%clk 1:26:20] } 6. Bc2 { [%clk 1:30:42] } 6... e5 { [%clk 1:26:28] } 7. O-O { [%clk 1:30:59] } 7... Bg7 { [%clk 1:26:37] } 8. d4 { [%clk 1:31:17] } 8... exd4 { [%clk 1:24:38] } 9. cxd4 { [%clk 1:31:42] } 9... cxd4 { [%clk 1:23:24] } 10. Nxd4 { [%clk 1:31:25] } 10... O-O { [%clk 1:23:48] } 11. Nc3 { [%clk 1:31:49] } 11... d5 { [%clk 1:13:45] } 12. Nxc6 { [%clk 1:31:53] } 1/2-1/2

[Event "Reykjavik Open 2025"]
[Site "Reykjavik, Iceland"]
[Date "2025.04.15"]
[Round "9.5"]
[White "Hjartarson, Johann"]
[Black "Ivic, Velimir"]
[Result "0-1"]
[WhiteElo "2461"]
[WhiteTitle "GM"]
[WhiteFideId "2300044"]
[BlackElo "2623"]
[BlackTitle "GM"]
[BlackFideId "950122"]
[TimeControl "90+30 +30 after 40 moves"]
[Variant "Standard"]
[ECO "D43"]
[Opening "Queen's Gambit Declined: Hastings Variation"]
[StudyName "Round 9"]
1. d4 { [%clk 1:30:56] } 1... Nf6 { [%clk 1:30:43] } 2. c4 { [%clk 1:31:19] } 2... e6 { [%clk 1:31:08] } 3. Nf3 { [%clk 1:29:46] } 3... d5 { [%clk 1:31:13] } 4. Nc3 { [%clk 1:30:05] } 4... c6 { [%clk 1:31:10] } 5. Bg5 { [%clk 1:24:50] } 5... h6 { [%clk 1:31:24] } 6. Bxf6 { [%clk 1:25:05] } 6... Qxf6 { [%clk 1:31:48] } 7. Qb3 { [%clk 1:24:38] } 7... Qe7 { [%clk 1:30:05] } 8. e3 { [%clk 1:18:08] } 8... g6 { [%clk 1:27:29] } 9. Be2 { [%clk 1:10:12] } 9... Bg7 { [%clk 1:26:46] } 10. O-O { [%clk 1:10:31] } 10... O-O { [%clk 1:26:44] } 11. Rad1 { [%clk 1:09:39] } 11... Nd7 { [%clk 1:25:06] } 12. a3 { [%clk 1:08:13] } 12... a6 { [%clk 1:13:47] } 13. e4 { [%clk 0:56:39] } 13... dxc4 { [%clk 1:11:47] } 14. Qxc4 { [%clk 0:55:54] } 14... c5 { [%clk 1:11:32] } 15. d5 { [%clk 0:49:32] } 15... b5 { [%clk 1:10:46] } 16. Qd3 { [%clk 0:49:31] } 16... Rd8 { [%clk 0:57:05] } 17. dxe6 { [%clk 0:43:34] } 17... Qxe6 { [%clk 0:53:58] } 18. Nd5 { [%clk 0:43:19] } 18... Rb8 { [%clk 0:52:52] } 19. e5 { [%clk 0:36:54] } 19... Bb7 { [%clk 0:50:15] } 20. Nf4 { [%clk 0:35:43] } 20... Qe8 { [%clk 0:46:13] } 21. e6 { [%clk 0:34:25] } 21... Nf8 { [%clk 0:41:36] } 22. exf7+ { [%clk 0:30:37] } 22... Qxf7 { [%clk 0:41:54] } 23. Qe3 { [%clk 0:30:29] } 23... Re8 { [%clk 0:39:57] } 24. Qd2 { [%clk 0:30:49] } 24... c4 { [%clk 0:38:30] } 25. h4 { [%clk 0:25:22] } 25... Re4 { [%clk 0:37:56] } 26. Nh3 { [%clk 0:25:36] } 26... Rbe8 { [%clk 0:35:43] } 27. Rde1 { [%clk 0:25:09] } 27... Qf6 { [%clk 0:34:20] } 28. Bd1 { [%clk 0:23:42] } 28... Qxb2 { [%clk 0:33:56] } 29. Rxe4 { [%clk 0:23:54] } 29... Bxe4 { [%clk 0:33:28] } 0-1

[Event "Reykjavik Open 2025"]
[Site "Reykjavik, Iceland"]
[Date "2025.04.15"]
[Round "9.6"]
[White "Royal, Shreyas"]
[Black "Banusz, Tamas"]
[Result "1/2-1/2"]
[WhiteElo "2465"]
[WhiteTitle "GM"]
[WhiteFideId "448869"]
[BlackElo "2592"]
[BlackTitle "GM"]
[BlackFideId "722413"]
[TimeControl "90+30 +30 after 40 moves"]
[Variant "Standard"]
[ECO "D25"]
[Opening "Queen's Gambit Accepted: Janowski-Larsen Variation"]
[StudyName "Round 9"]
1. d4 { [%clk 1:30:58] } 1... d5 { [%clk 1:30:48] } 2. c4 { [%clk 1:31:21] } 2... dxc4 { [%clk 1:31:10] } 3. Nf3 { [%clk 1:31:45] } 3... Nf6 { [%clk 1:31:36] } 4. e3 { [%clk 1:32:10] } 4... Bg4 { [%clk 1:32:01] } 5. Bxc4 { [%clk 1:31:41] } 5... e6 { [%clk 1:32:26] } 6. h3 { [%clk 1:30:46] } 6... Bh5 { [%clk 1:32:48] } 7. Nc3 { [%clk 1:30:43] } 7... Nc6 { [%clk 1:32:55] } 8. O-O { [%clk 1:27:21] } 8... Bd6 { [%clk 1:32:56] } 9. Re1 { [%clk 1:21:31] } 9... O-O { [%clk 1:32:05] } 10. g4 { [%clk 1:19:53] } 10... Bg6 { [%clk 1:32:29] } 11. e4 { [%clk 1:20:13] } 11... Bb4 { [%clk 1:32:48] } 12. Bg5 { [%clk 1:15:34] } 12... h6 { [%clk 1:33:10] } 13. Bh4 { [%clk 1:14:38] } 13... Be7 { [%clk 1:33:36] } 14. Bg3 { [%clk 1:09:52] } 14... Bb4 { [%clk 1:33:35] } 15. Bh4 { [%clk 1:09:39] } 15... Be7 { [%clk 1:34:01] } 16. Bg3 { [%clk 0:55:52] } 16... Bb4 { [%clk 1:33:50] } 17. Bh4 { [%clk 0:39:36] } 17... Be7 { [%clk 1:34:07] } 18. Bg3 { [%clk 0:40:01] } 1/2-1/2

[Event "Reykjavik Open 2025"]
[Site "Reykjavik, Iceland"]
[Date "2025.04.15"]
[Round "9.8"]
[White "Maze, Sebastien"]
[Black "Sriansh Das"]
[Result "1/2-1/2"]
[WhiteElo "2557"]
[WhiteTitle "GM"]
[WhiteFideId "613762"]
[BlackElo "2278"]
[BlackTitle "FM"]
[BlackFideId "45030081"]
[TimeControl "90+30 +30 after 40 moves"]
[Variant "Standard"]
[ECO "C85"]
[Opening "Ruy Lopez: Closed, Delayed Exchange"]
[StudyName "Round 9"]
1. e4 { [%clk 1:30:58] } 1... e5 { [%clk 1:30:48] } 2. Nf3 { [%clk 1:31:24] } 2... Nc6 { [%clk 1:31:13] } 3. Bb5 { [%clk 1:31:50] } 3... a6 { [%clk 1:31:38] } 4. Ba4 { [%clk 1:32:17] } 4... Nf6 { [%clk 1:32:03] } 5. O-O { [%clk 1:32:42] } 5... Be7 { [%clk 1:32:27] } 6. Bxc6 { [%clk 1:33:07] } 6... dxc6 { [%clk 1:32:49] } 7. d3 { [%clk 1:33:34] } 7... Nd7 { [%clk 1:29:13] } 8. Nc3 { [%clk 1:33:07] } 8... O-O { [%clk 1:29:35] } 9. Be3 { [%clk 1:33:08] } 9... Bd6 { [%clk 1:17:25] } 10. Ne2 { [%clk 1:31:28] } 10... Re8 { [%clk 1:15:18] } 11. Nd2 { [%clk 1:31:42] } 11... Nf8 { [%clk 1:12:51] } 12. Ng3 { [%clk 1:31:51] } 12... Ng6 { [%clk 1:11:18] } 13. Nf5 { [%clk 1:19:32] } 13... Nh4 { [%clk 0:51:15] } 14. Qh5 { [%clk 1:18:13] } 14... Nxf5 { [%clk 0:42:32] } 15. exf5 { [%clk 1:18:41] } 15... g6 { [%clk 0:40:09] } 16. fxg6 { [%clk 1:19:07] } 16... hxg6 { [%clk 0:40:04] } 17. Qf3 { [%clk 1:19:33] } 17... f5 { [%clk 0:36:14] } 18. Qg3 { [%clk 1:19:11] } 18... f4 { [%clk 0:17:33] } 19. Qxg6+ { [%clk 1:19:36] } 19... Kh8 { [%clk 0:18:00] } 20. Ne4 { [%clk 1:19:30] } 20... Re6 { [%clk 0:17:52] } 21. Qh5+ { [%clk 1:09:21] } 21... Kg7 { [%clk 0:18:15] } 22. Bd2 { [%clk 1:09:49] } 22... Rg6 { [%clk 0:16:15] } 23. f3 { [%clk 0:56:12] } 23... Rh6 { [%clk 0:05:39] } 24. Qg5+ { [%clk 0:56:40] } 24... Qxg5 { [%clk 0:06:03] } 25. Nxg5 { [%clk 0:57:09] } 25... Bc5+ { [%clk 0:05:27] } 26. Kh1 { [%clk 0:57:17] } 26... Bf5 { [%clk 0:04:13] } 27. Bc3 { [%clk 0:51:12] } 27... Kf6 { [%clk 0:03:00] } 28. Nh3 { [%clk 0:51:38] } 28... Bxh3 { [%clk 0:03:04] } 29. gxh3 { [%clk 0:52:06] } 29... Rxh3 { [%clk 0:02:53] } 30. Rae1 { [%clk 0:42:19] } 30... Be3 { [%clk 0:03:05] } 31. Re2 { [%clk 0:42:29] } 31... Rg8 { [%clk 0:03:15] } 32. Rg2 { [%clk 0:38:22] } 32... Rgg3 { [%clk 0:02:33] } 33. Be1 { [%clk 0:38:24] } 33... Rxf3 { [%clk 0:02:07] } 34. Bh4+ { [%clk 0:38:28] } 34... Kf7 { [%clk 0:02:27] } 35. Rxf3 { [%clk 0:38:45] } 35... Rxf3 { [%clk 0:02:56] } 36. Rg5 { [%clk 0:38:56] } 36... Rh3 { [%clk 0:02:09] } 37. Rg4 { [%clk 0:38:23] } 37... Bc1 { [%clk 0:00:52] } 38. b3 { [%clk 0:36:03] } 38... Re3 { [%clk 0:01:13] } 39. Kg1 { [%clk 0:35:39] } 39... Ba3 { [%clk 0:00:56] } 40. Kf1 { [%clk 0:31:00] } 40... Bc5 { [%clk 0:01:02] } 41. Be1 { [%clk 0:29:55] } 1/2-1/2

[Event "Reykjavik Open 2025"]
[Site "Reykjavik, Iceland"]
[Date "2025.04.15"]
[Round "9.10"]
[White "Stefansson, Hannes"]
[Black "Kadric, Denis"]
[Result "0-1"]
[WhiteElo "2420"]
[WhiteTitle "GM"]
[WhiteFideId "2300087"]
[BlackElo "2533"]
[BlackTitle "GM"]
[BlackFideId "14403803"]
[TimeControl "90+30 +30 after 40 moves"]
[Variant "Standard"]
[ECO "C41"]
[Opening "Philidor Defense: Lion Variation"]
[StudyName "Round 9"]
1. e4 { [%clk 1:30:29] } 1... d6 { [%clk 1:29:53] } 2. d4 { [%clk 1:30:36] } 2... Nf6 { [%clk 1:30:22] } 3. Nc3 { [%clk 1:30:46] } 3... e5 { [%clk 1:30:48] } 4. Nf3 { [%clk 1:30:24] } 4... Nbd7 { [%clk 1:31:14] } 5. Bc4 { [%clk 1:29:51] } 5... Be7 { [%clk 1:31:40] } 6. O-O { [%clk 1:29:29] } 6... O-O { [%clk 1:32:06] } 7. a4 { [%clk 1:28:19] } 7... c6 { [%clk 1:29:05] } 8. Re1 { [%clk 1:27:14] } 8... h6 { [%clk 1:29:31] } 9. Ba2 { [%clk 1:23:15] } 9... Re8 { [%clk 1:29:02] } 10. Be3 { [%clk 1:20:54] } 10... Ng4 { [%clk 1:28:34] } 11. Bd2 { [%clk 1:20:24] } 11... a5 { [%clk 1:27:53] } 12. h3 { [%clk 1:13:37] } 12... Ngf6 { [%clk 1:28:18] } 13. Be3 { [%clk 1:12:28] } 13... exd4 { [%clk 1:27:22] } 14. Bxd4 { [%clk 1:11:23] } 14... Nf8 { [%clk 1:27:48] } 15. Nd2 { [%clk 1:06:53] } 15... Ne6 { [%clk 1:10:11] } 16. Be3 { [%clk 1:06:46] } 16... d5 { [%clk 1:09:20] } 17. exd5 { [%clk 1:04:51] } 17... cxd5 { [%clk 1:09:48] } 18. Nf3 { [%clk 1:02:03] } 18... Bb4 { [%clk 1:10:14] } 19. Qd3 { [%clk 0:55:29] } 19... b6 { [%clk 0:59:06] } 20. Bd4 { [%clk 0:41:59] } 20... Ba6 { [%clk 0:56:56] } 21. Bxf6 { [%clk 0:39:40] } 21... Qxf6 { [%clk 0:56:43] } 22. Qxd5 { [%clk 0:39:25] } 22... Bxc3 { [%clk 0:48:59] } 23. bxc3 { [%clk 0:39:39] } 23... Nf4 { [%clk 0:49:08] } 24. Rxe8+ { [%clk 0:36:22] } 24... Rxe8 { [%clk 0:49:36] } 25. Qd7 { [%clk 0:36:16] } 25... Re7 { [%clk 0:48:10] } 26. Qg4 { [%clk 0:28:27] } 26... Ne2+ { [%clk 0:44:06] } 27. Kh2 { [%clk 0:28:44] } 27... Nxc3 { [%clk 0:42:37] } 28. Bb3 { [%clk 0:28:28] } 28... Ne4 { [%clk 0:37:33] } 29. Rd1 { [%clk 0:28:37] } 29... Nxf2 { [%clk 0:37:05] } 30. Rd8+ { [%clk 0:28:51] } 30... Kh7 { [%clk 0:37:33] } 31. Qg3 { [%clk 0:27:18] } 31... Ne4 { [%clk 0:37:40] } 32. Qb8 { [%clk 0:27:39] } 32... g6 { [%clk 0:27:05] } 33. Bd5 { [%clk 0:27:14] } 33... Be2 { [%clk 0:25:39] } 34. Ng1 { [%clk 0:24:55] } 34... Bf1 { [%clk 0:23:06] } 35. Nf3 { [%clk 0:23:25] } 35... Nc3 { [%clk 0:19:50] } 36. Ba8 { [%clk 0:19:40] } 36... Nxa4 { [%clk 0:16:07] } 37. Bc6 { [%clk 0:18:21] } 37... Nc3 { [%clk 0:14:29] } 38. Qxb6 { [%clk 0:18:28] } 38... Re2 { [%clk 0:12:21] } 39. Ng1 { [%clk 0:13:38] } 0-1

[Event "Reykjavik Open 2025"]
[Site "Reykjavik, Iceland"]
[Date "2025.04.15"]
[Round "9.12"]
[White "Thorfinnsson, Bragi"]
[Black "Papp, Gabor"]
[Result "1/2-1/2"]
[WhiteElo "2375"]
[WhiteTitle "GM"]
[WhiteFideId "2300958"]
[BlackElo "2502"]
[BlackTitle "GM"]
[BlackFideId "718602"]
[TimeControl "90+30 +30 after 40 moves"]
[Variant "Standard"]
[ECO "D30"]
[Opening "Queen's Gambit Declined: Traditional Variation"]
[StudyName "Round 9"]
1. d4 { [%clk 1:30:44] } 1... Nf6 { [%clk 1:30:54] } 2. c4 { [%clk 1:30:09] } 2... e6 { [%clk 1:31:18] } 3. Nf3 { [%clk 1:30:16] } 3... d5 { [%clk 1:31:32] } 4. Bg5 { [%clk 1:28:38] } 4... dxc4 { [%clk 1:31:36] } 5. Qa4+ { [%clk 1:24:44] } 5... Nbd7 { [%clk 1:22:15] } 6. Nbd2 { [%clk 1:20:21] } 6... a6 { [%clk 1:08:46] } 7. Qxc4 { [%clk 1:18:51] } 7... c5 { [%clk 1:08:34] } 8. dxc5 { [%clk 0:56:23] } 8... Bxc5 { [%clk 1:02:39] } 9. b4 { [%clk 0:49:10] } 9... Be7 { [%clk 1:01:55] } 10. e3 { [%clk 0:49:16] } 10... h6 { [%clk 0:56:23] } 11. Bh4 { [%clk 0:48:31] } 11... b5 { [%clk 0:56:38] } 12. Qb3 { [%clk 0:47:43] } 12... Bb7 { [%clk 0:57:02] } 13. Be2 { [%clk 0:47:13] } 13... g5 { [%clk 0:56:19] } 14. Bg3 { [%clk 0:47:30] } 14... g4 { [%clk 0:56:44] } 15. Ne5 { [%clk 0:44:30] } 15... Bxg2 { [%clk 0:56:47] } 16. Rg1 { [%clk 0:44:54] } 16... Bd5 { [%clk 0:56:58] } 17. Qb2 { [%clk 0:44:55] } 17... Rg8 { [%clk 0:56:11] } 18. a4 { [%clk 0:37:31] } 18... Nh5 { [%clk 0:47:35] } 19. Nxd7 { [%clk 0:35:23] } 19... Nxg3 { [%clk 0:48:00] } 20. Rxg3 { [%clk 0:32:36] } 20... Qxd7 { [%clk 0:48:25] } 21. axb5 { [%clk 0:29:02] } 21... axb5 { [%clk 0:46:17] } 22. Rxa8+ { [%clk 0:27:50] } 22... Bxa8 { [%clk 0:46:44] } 23. Bxg4 { [%clk 0:27:50] } 23... Qd6 { [%clk 0:44:12] } 24. Be2 { [%clk 0:25:55] } 24... Kf8 { [%clk 0:40:13] } 25. Bxb5 { [%clk 0:16:46] } 25... Qd5 { [%clk 0:34:11] } 26. Bf1 { [%clk 0:11:09] } 26... Qh1 { [%clk 0:28:28] } 27. Qe5 { [%clk 0:11:07] } 27... Rxg3 { [%clk 0:25:44] } 28. hxg3 { [%clk 0:09:13] } 28... Kg8 { [%clk 0:26:00] } 29. e4 { [%clk 0:07:50] } 29... Bf8 { [%clk 0:22:12] } 30. Ke2 { [%clk 0:05:31] } 30... Bc6 { [%clk 0:11:11] } 31. b5 { [%clk 0:04:38] } 31... Bb7 { [%clk 0:11:40] } 32. Nf3 { [%clk 0:03:56] } 32... Kh7 { [%clk 0:12:07] } 33. Qc7 { [%clk 0:01:47] } 33... Bxe4 { [%clk 0:12:31] } 34. Qxf7+ { [%clk 0:02:07] } 34... Bg7 { [%clk 0:13:00] } 35. Nd2 { [%clk 0:00:47] } 35... Bf5 { [%clk 0:10:02] } 36. Qc7 { [%clk 0:00:58] } 36... Qd5 { [%clk 0:06:34] } 37. b6 { [%clk 0:01:13] } 37... Qb5+ { [%clk 0:05:49] } 38. Ke1 { [%clk 0:00:38] } 38... Qa5 { [%clk 0:06:17] } 39. Bc4 { [%clk 0:00:37] } 39... Kg6 { [%clk 0:05:02] } 40. g4 { [%clk 0:00:33] } 40... Qa1+ { [%clk 0:01:38] } 41. Ke2 { [%clk 0:29:58] } 41... Bxg4+ { [%clk 0:32:00] } 42. f3 { [%clk 0:29:09] } 42... Bf5 { [%clk 0:32:25] } 43. Qg3+ { [%clk 0:22:43] } 43... Kf7 { [%clk 0:31:31] } 44. Qc7+ { [%clk 0:19:06] } 44... Kg6 { [%clk 0:31:49] } 45. Qg3+ { [%clk 0:18:21] } 45... Kf7 { [%clk 0:32:14] } 46. Qc7+ { [%clk 0:18:44] } 1/2-1/2